bitfinex-derivatives/quotes_ETHF0:USTF0_20250403
["timestamp","ask_amount","ask_price","bid_price","bid_amount"]
[1743700064889,2.59789,1779.0,1778.9,1.6972594]
[1743700065083,5.80569,1779.0,1778.9,1.69703792]
[1743700065285,5.80569,1779.0,1778.9,1.69692931]
[1743700065485,4.6811,1779.0,1778.9,1.69692931]
[1743700065681,5.80564,1779.0,1778.9,1.69692931]
[1743700065975,5.80564,1779.0,1778.9,1.69693398]
[1743700066183,5.80564,1779.0,1778.9,0.57233398]
[1743700066384,1.12471,1778.8,1778.6,1.4455]
[1743700066587,1.12471,1778.8,1778.7,1.69694009]
[1743700066989,0.7421,1778.8,1778.7,1.69694009]
[1743700067190,3.2078,1779.0,1778.9,1.1246]
[1743700067388,1.12465,1778.9,1778.8,1.12462]
[1743700067585,0.7636,1778.9,1778.8,1.6967856]
[1743700067985,0.7636,1778.9,1778.8,2.44544975]
[1743700068389,0.7636,1778.9,1778.8,3.89084676]
[1743700068989,1.88801,1779.2,1779.1,1.12447]
[1743700069294,0.7636,1779.2,1779.1,1.12447]
[1743700069488,0.7636,1779.2,1779.1,1.69623444]
[1743700070299,0.7636,1779.2,1779.1,1.12447]
[1743700070488,0.7636,1779.2,1779.1,1.69600616]
[1743700070694,0.7636,1779.2,1779.1,1.69600062]
[1743700071192,3.2078,1779.3,1779.2,1.12441]
[1743700071400,1.12407,1779.8,1779.7,1.12409]
[1743700071401,4.33184,1779.8,1779.7,1.12409]
[1743700072295,4.33183,1779.8,1779.7,1.12409]
[1743700072496,3.2078,1779.8,1779.7,1.12409]
[1743700072691,4.33183,1779.8,1779.7,1.12409]
[1743700073200,3.2078,1779.8,1779.7,1.12409]
[1743700073896,4.33187,1779.8,1779.6,1.5315]
[1743700074198,6.0179,1779.8,1779.4,1.12425]
[1743700074399,1.1242,1779.6,1779.5,1.12422]
[1743700074696,1.1242,1779.6,1779.3,1.5315]
[1743700074998,3.2078,1779.8,1779.5,1.12419]
[1743700075196,3.2078,1779.8,1779.7,1.12409]
[1743700075495,1.12411,1779.7,1779.6,1.12413]
[1743700076093,3.2078,1779.8,1779.4,1.5315]
[1743700076293,1.12419,1779.6,1779.2,9.9988]
[1743700076598,1.86272,1779.5,1779.4,1.12428]
[1743700076787,1.1243,1779.4,1779.3,1.12429]
[1743700077485,2.56108,1779.5,1779.4,1.12428]
[1743700077689,1.4368,1779.5,1779.4,1.12428]
[1743700078089,1.4368,1779.5,1779.2,1.5308]
[1743700078289,1.1243,1779.4,1779.3,1.1243]
[1743700078490,3.2078,1779.6,1779.5,1.12422]
[1743700078690,3.2078,1779.6,1779.2,7.54961]
[1743700078896,3.2078,1779.6,1779.3,1.4065]
[1743700079291,4.332,1779.6,1779.5,1.12422]
[1743700079605,3.2078,1779.6,1779.3,1.4065]
[1743700079898,1.12424,1779.5,1779.4,1.12423]
[1743700080193,1.12428,1779.4,1779.3,1.1243]
[1743700080395,1.12439,1779.3,1779.2,1.12439]
[1743700080589,1.12439,1779.3,1779.1,1.12445]
[1743700080590,1.12444,1779.2,1779.1,1.12445]
[1743700080791,2.56979,1779.3,1779.2,1.12441]
[1743700081099,0.7047,1779.3,1779.2,1.12441]
[1743700081292,1.12425,1779.5,1779.4,1.12428]
[1743700081794,1.12428,1779.5,1779.4,1.12428]
[1743700082000,1.12436,1779.3,1779.2,1.12436]
[1743700082296,7.1868,1779.6,1779.0,45.90006379]
[1743700082497,1.12441,1779.2,1779.1,1.12442]
[1743700082694,1.12441,1779.3,1779.2,1.1244]
[1743700082899,1.12441,1779.3,1779.0,40.80845379]
[1743700082900,1.12443,1779.2,1779.1,1.12442]
[1743700083097,1.419,1779.3,1779.0,40.80845379]
[1743700083598,1.12447,1779.2,1779.1,1.12446]
[1743700083799,2.54339,1779.3,1779.2,1.12441]
[1743700084494,1.419,1779.3,1779.2,1.12441]
[1743700084696,1.12444,1779.2,1779.1,1.12444]
[1743700084892,1.419,1779.3,1779.2,1.12441]
[1743700085101,3.2078,1779.6,1779.5,1.12415]
[1743700085395,1.4313,1779.8,1779.5,2.81056]
[1743700085697,1.4313,1779.8,1779.7,1.12409]
[1743700085892,1.4313,1779.8,1779.3,5.5095]
[1743700086086,1.12427,1779.5,1779.4,1.12425]
[1743700086294,4.33207,1779.5,1779.4,1.12425]
[1743700087199,3.2078,1779.5,1779.4,1.12425]
[1743700087401,1.4647,1779.6,1779.5,1.12422]
[1743700087899,6.01758,1780.0,1779.5,1.12422]
[1743700087900,3.2078,1780.0,1779.8,1.12398]
[1743700088199,3.2078,1780.0,1779.6,2.81033]
[1743700088200,1.12405,1779.8,1779.7,1.12404]
[1743700088400,1.4171,1779.9,1779.5,5.62106]
[1743700088595,2.54112,1779.9,1779.8,1.12403]
[1743700089698,1.12403,1779.8,1779.7,3.29234]
[1743700089896,2.54113,1779.8,1779.7,3.29234]
[1743700090297,1.4171,1779.8,1779.7,3.29234]
[1743700090897,2.57515,1780.1,1779.7,8.75698464]
[1743700091102,2.53501,1780.0,1779.9,1.12397]
[1743700091398,1.39140109,1780.0,1779.9,1.12397]
[1743700091601,1.39140109,1780.0,1779.9,2.54997]
[1743700094097,3.2078,1780.2,1780.1,1.12384]
[1743700094608,4.6302,1780.2,1780.0,2.59616933]
[1743700094903,2.54624,1780.1,1780.0,0.00842933]
[1743700096000,5.04624,1780.1,1780.0,0.00842933]
[1743700097697,1.1242,1779.6,1779.5,1.12419]
[1743700097904,1.1242,1779.6,1779.5,1.10449109]
[1743700098299,1.479,1779.7,1779.6,1.12416]
[1743700098300,2.60314,1779.7,1779.6,1.12416]
[1743700098601,4.33185,1779.8,1779.7,1.12409]
[1743700098809,1.12414,1779.7,1779.6,1.12413]
[1743700099308,1.12414,1779.7,1779.5,2.58269933]
[1743700099604,3.21614779,1779.8,1779.5,2.58269933]
[1743700099908,1.12416,1779.6,1779.5,0.00842933]
[1743700100102,1.12416,1779.6,1779.5,1.13264933]
[1743700100301,1.12416,1779.6,1779.5,0.00842933]
[1743700100708,1.12416,1779.6,1779.5,1.13260933]
[1743700100909,1.12415,1779.7,1779.6,1.12413]
[1743700101207,1.12416,1779.6,1779.5,1.13259933]
[1743700101407,1.12414,1779.7,1779.6,1.12412]
[1743700101607,1.12416,1779.6,1779.5,0.00842933]
[1743700101799,4.33196,1779.6,1779.5,0.00842933]
[1743700103700,10.80296,1779.6,1779.5,0.00842933]
[1743700104908,1.12447,1779.1,1779.0,40.8]
[1743700105107,1.1247,1778.8,1778.7,1.1247]
[1743700105408,1.1247,1778.8,1778.6,2.1841]
[1743700105409,1.12466,1778.8,1778.6,2.1841]
[1743700105608,1.12466,1778.8,1778.7,40.8]
[1743700106110,1.12473,1778.7,1778.6,0.70552933]
[1743700106317,1.12473,1778.7,1778.6,0.00842933]
[1743700106812,4.33253,1778.7,1778.6,0.00842933]
[1743700109110,3.2078,1778.7,1778.6,1.13321933]
[1743700109419,4.33253,1778.7,1778.6,1.13321933]
[1743700109805,3.2078,1778.7,1778.6,1.88671933]
[1743700110010,3.2078,1778.7,1778.6,2.64761933]
[1743700111114,1.1247,1778.8,1778.7,1.12473]
[1743700111313,1.1247,1778.8,1778.7,1.509]
[1743700111514,1.1247,1778.8,1778.6,1.52282933]
[1743700111515,1.12472,1778.8,1778.6,2.64756933]
[1743700112013,1.12472,1778.8,1778.7,1.4383]
[1743700112212,1.12473,1778.7,1778.6,0.00842933]
[1743700112413,4.33253,1778.7,1778.6,0.00842933]
[1743700112613,10.80453,1778.7,1778.6,0.00842933]
[1743700113015,1.12511,1778.1,1778.0,41.5094]
[1743700113211,4.33291,1778.1,1778.0,40.8]
[1743700113521,1.12523,1777.9,1777.8,2.179]
[1743700113908,1.12523,1777.9,1777.8,42.979]
[1743700114216,4.33303,1777.9,1777.8,40.8]
[1743700114411,1.1253,1777.8,1777.7,0.00842933]
[1743700114817,1.8663,1777.8,1777.7,0.00842933]
[1743700115421,5.8393,1777.8,1777.7,0.00842933]
[1743700115815,7.2419,1777.8,1777.7,0.00842933]
[1743700116011,9.7419,1777.8,1777.7,0.00842933]
[1743700118123,1.12549,1777.5,1777.4,40.8]
[1743700118327,1.12561,1777.3,1777.1,2.61209]
[1743700118724,1.4339,1777.4,1777.1,1.4864]
[1743700118926,1.4339,1777.4,1777.3,1.12561]
[1743700119223,1.4339,1777.4,1777.3,41.92561]
[1743700119820,2.55945,1777.4,1777.3,40.8]
[1743700120728,3.30845,1777.4,1777.3,40.8]
[1743700121536,1.12561,1777.3,1777.2,0.00842933]
[1743700121722,5.75331,1777.3,1777.2,0.00842933]
[1743700123032,8.25331,1777.3,1777.2,0.00842933]
[1743700123620,1.12587,1776.9,1776.6,4.33381]
[1743700123824,2.54588,1776.8,1776.6,2.53681]
[1743700124034,1.4199,1776.8,1776.6,2.53681]
[1743700124331,1.12599,1776.7,1776.5,1.4929]
[1743700124526,1.3913,1776.6,1776.5,1.88401]
[1743700124933,1.3913,1776.6,1776.5,3.29321]
[1743700125729,1.3913,1776.6,1776.5,2.53531]
[1743700126030,2.51736,1776.6,1776.4,1.13458933]
[1743700126229,2.51736,1776.6,1776.4,1.41762933]
[1743700126230,1.12612,1776.5,1776.4,1.41762933]
[1743700126429,1.3913,1776.5,1776.4,2.54380933]
[1743700126828,2.51742,1776.5,1776.4,1.41762933]
[1743700127128,4.5991,1776.5,1776.4,1.41762933]
[1743700127430,9.91443,1776.5,1775.9,1.12648]
[1743700127629,4.33414,1776.2,1776.0,1.12643]
[1743700127830,3.2078,1776.2,1776.0,1.12639]
[1743700128131,3.2078,1776.2,1776.1,2.51387]
[1743700128529,1.5035,1776.3,1776.2,1.12631]
[1743700128831,2.62975,1776.3,1776.2,1.3875]
[1743700129029,2.62975,1776.3,1776.2,2.51381]
[1743700129231,1.5035,1776.3,1776.2,2.51381]
[1743700129639,2.62975,1776.3,1776.2,1.3875]
[1743700130333,1.12637,1776.1,1776.0,1.13214112]
[1743700130539,1.12637,1776.1,1776.0,0.00570112]
[1743700130838,1.12635,1776.2,1776.0,1.13210112]
[1743700131027,1.5035,1776.3,1776.0,2.64370112]
[1743700131233,1.12637,1776.1,1776.0,2.64370112]
[1743700131426,4.33416,1776.2,1776.0,2.64370112]
[1743700131739,1.12637,1776.1,1776.0,2.64370112]
[1743700132442,1.12637,1776.1,1776.0,1.51730112]
[1743700132736,2.54017,1776.1,1776.0,2.64374112]
[1743700132938,2.54017,1776.1,1776.0,1.51730112]
[1743700133738,1.12637,1776.1,1776.0,2.64374112]
[1743700133934,3.2078,1776.2,1776.0,2.64374112]
[1743700134239,4.33414,1776.2,1776.0,2.64374112]
[1743700134435,4.6303,1776.2,1776.1,1.12637]
[1743700134641,4.6303,1776.2,1776.0,2.64369112]
[1743700134841,5.75665,1776.2,1776.0,2.64369112]
[1743700135140,3.2078,1776.2,1776.1,1.12637]
[1743700135334,3.2078,1776.2,1776.1,1.84677]
[1743700135933,4.33411,1776.2,1776.1,1.84677]
[1743700136135,1.12631,1776.2,1776.1,1.84677]
[1743700136641,1.12631,1776.2,1776.1,0.7204]
[1743700137631,1.12631,1776.2,1776.1,1.84677]
[1743700137840,8.6073,1776.4,1776.1,1.84677]
[1743700137841,1.12629,1776.3,1776.1,1.84677]
[1743700138039,1.4425,1776.3,1776.1,1.84677]
[1743700138236,1.12631,1776.2,1776.1,1.84677]
[1743700138538,1.12631,1776.2,1776.1,0.7204]
[1743700138735,4.33411,1776.2,1776.1,0.7204]
[1743700140846,1.12637,1776.1,1776.0,2.64368112]
[1743700141044,2.58137,1776.1,1776.0,0.00570112]
[1743700141746,2.58137,1776.1,1776.0,1.13214112]
[1743700141945,2.58137,1776.1,1776.0,0.00570112]
[1743700142640,1.455,1776.1,1776.0,1.13214112]
[1743700143040,2.58137,1776.1,1776.0,0.00570112]
[1743700143639,6.55937,1776.1,1776.0,0.00570112]
[1743700143841,7.26897,1776.1,1776.0,0.00570112]
[1743700145346,4.722,1776.3,1776.0,1.69680742]
[1743700145545,3.2078,1776.4,1776.1,1.505]
[1743700145744,5.10428,1776.3,1776.1,3.013]
[1743700145949,1.12631,1776.2,1776.1,3.013]
[1743700146141,5.362,1776.3,1776.1,1.508]
[1743700146337,5.362,1776.3,1776.2,1.12631]
[1743700146338,6.48829,1776.3,1776.2,1.12631]
[1743700146540,3.2078,1776.4,1776.3,1.12625]
[1743700146748,3.2078,1776.4,1776.1,1.508]
[1743700146749,6.02334,1776.4,1776.1,2.63436]
[1743700146951,1.384,1776.3,1776.2,1.12631]
[1743700147248,2.5103,1776.3,1776.2,1.12631]
[1743700147449,2.5103,1776.3,1776.2,1.87255692]
[1743700147849,2.5103,1776.3,1776.2,2.43807865]
[1743700148148,2.5103,1776.3,1776.2,1.87255692]
[1743700148357,2.5103,1776.3,1776.2,2.43806455]
[1743700148846,1.384,1776.3,1776.2,3.63268531]
[1743700149552,1.384,1776.3,1776.2,4.28848085]
[1743700149853,4.5918,1776.3,1776.2,3.63268531]
[1743700150145,1.12622,1776.4,1776.3,1.12625]
[1743700150354,2.57282,1776.4,1776.3,1.69175763]
[1743700150539,2.57282,1776.4,1776.3,0.56550763]
[1743700150852,2.57282,1776.4,1776.3,1.69175763]
[1743700151053,2.57282,1776.4,1776.3,3.63262531]
[1743700151844,1.4466,1776.4,1776.3,3.63262531]
[1743700152047,1.4466,1776.4,1776.3,3.6343085]
[1743700152247,1.4466,1776.4,1776.3,4.29112817]
[1743700152548,2.57278,1776.4,1776.3,2.5080585]
[1743700153249,5.07278,1776.4,1776.3,1.94086768]
[1743700153951,5.07278,1776.4,1776.3,0.74624692]
[1743700154346,5.07278,1776.4,1776.3,1.31473481]
[1743700154544,1.12637,1776.1,1776.0,0.00570112]
[1743700154751,1.12637,1776.1,1776.0,0.57419594]
[1743700155053,1.12637,1776.1,1776.0,1.2954793]
[1743700155246,2.58237,1776.1,1776.0,2.4219193]
[1743700155441,2.58237,1776.1,1776.0,3.0679636]
[1743700155641,2.58237,1776.1,1776.0,2.4219193]
[1743700155848,2.58237,1776.1,1776.0,3.06798815]
[1743700156145,2.58237,1776.1,1776.0,3.06825271]
[1743700156350,1.12637,1776.1,1776.0,3.06820271]
[1743700156853,2.58236,1776.2,1776.1,1.12637]
[1743700157150,2.58236,1776.2,1776.1,2.34132015]
[1743700157352,2.58236,1776.2,1776.1,1.69512938]
[1743700157553,2.58236,1776.2,1776.1,3.06265436]
[1743700157851,1.12631,1776.2,1776.1,3.06278502]
[1743700158046,1.5191,1776.3,1776.1,1.93646502]
[1743700158254,1.12631,1776.2,1776.1,1.84761336]
[1743700158448,1.12631,1776.2,1776.1,0.56893592]
[1743700158648,4.33411,1776.2,1776.1,0.56893592]
[1743700158943,5.04551,1776.2,1776.1,0.56893592]
[1743700159147,5.04551,1776.2,1776.1,1.29082319]
[1743700159945,5.04551,1776.2,1776.1,1.29085216]
[1743700160439,5.04551,1776.2,1776.1,2.41722216]
[1743700160743,1.12631,1776.2,1776.1,3.06342329]
[1743700161050,1.5191,1776.3,1776.2,1.12631]
[1743700161254,2.64535,1776.3,1776.2,1.69527489]
[1743700161558,2.64535,1776.3,1776.2,2.41716216]
[1743700161848,2.64535,1776.3,1776.2,2.41708637]
[1743700162151,1.5191,1776.3,1776.2,2.41708637]
[1743700162345,2.64535,1776.3,1776.2,2.41708637]
[1743700164750,1.5191,1776.3,1776.2,2.41708637]
[1743700164950,4.33398,1776.4,1776.3,1.12625]
[1743700165155,5.75198,1776.4,1776.3,1.6951391]
[1743700165753,5.75198,1776.4,1776.3,2.41668486]
[1743700166349,4.6258,1776.4,1776.3,1.69503491]
[1743700166554,1.12616,1776.5,1776.4,1.12618]
[1743700166757,1.12616,1776.5,1776.4,3.20136491]
[1743700166947,2.61536,1776.5,1776.4,3.20136491]
[1743700168461,1.12612,1776.6,1776.5,1.12612]
[1743700168661,2.61532,1776.6,1776.5,3.20130491]
[1743700168962,1.12612,1776.5,1776.4,1.12618]
[1743700169154,2.61532,1776.5,1776.4,0.56856015]
[1743700169355,1.12625,1776.3,1776.2,1.12629]
[1743700169556,3.25104,1776.4,1776.3,1.12625]
[1743700169753,3.25104,1776.4,1776.3,1.69482266]
[1743700169954,1.4282,1776.4,1776.3,1.69482266]
[1743700170155,5.10318,1776.5,1776.4,1.12618]
[1743700170351,1.12618,1776.4,1776.3,2.63889]
[1743700170557,2.55438,1776.4,1776.3,3.20742629]
[1743700171056,5.10317,1776.5,1776.4,1.12618]
[1743700171257,6.53137,1776.5,1776.4,1.5127]
[1743700171868,6.53137,1776.5,1776.4,2.08123634]
[1743700172162,6.53137,1776.5,1776.4,3.20741634]
[1743700172462,6.53137,1776.5,1776.4,2.63888]
[1743700172662,6.53137,1776.5,1776.4,3.20741542]
[1743700172857,2.55437,1776.5,1776.4,3.20741542]
[1743700173458,2.55437,1776.5,1776.4,3.2074236]
[1743700175361,2.55437,1776.5,1776.4,2.63888]
[1743700175565,2.55437,1776.5,1776.4,3.20746484]
[1743700176158,1.12606,1776.6,1776.5,1.12612]
[1743700176362,1.12606,1776.6,1776.5,3.20820484]
[1743700176870,2.55456,1776.6,1776.5,3.20820484]
[1743700177062,1.4285,1776.6,1776.5,3.20820484]
[1743700177563,2.55456,1776.6,1776.5,3.96630484]
[1743700177765,1.4285,1776.6,1776.5,3.96630484]
[1743700177965,2.55456,1776.6,1776.5,3.96630484]
[1743700178462,1.4285,1776.6,1776.5,3.96630484]
[1743700178657,0.00842933,1776.7,1776.6,1.12606]
[1743700178860,0.00842933,1776.7,1776.6,3.19626288]
[1743700180168,1.13441933,1776.7,1776.6,3.19626288]
[1743700180368,2.53131933,1776.7,1776.6,3.19626288]
[1743700181272,2.53131933,1776.7,1776.6,3.19600932]
[1743700181470,2.53131933,1776.7,1776.6,2.62796]
[1743700181672,1.12606,1776.6,1776.5,1.88417]
[1743700181969,2.63096,1776.6,1776.5,2.45215585]
[1743700182167,2.63096,1776.6,1776.5,1.88417]
[1743700182371,1.12612,1776.5,1776.4,1.89278]
[1743700182570,2.63102,1776.5,1776.4,2.46078222]
[1743700182758,2.63102,1776.5,1776.4,1.89278]
[1743700183368,2.63102,1776.5,1776.4,2.46085521]
[1743700184670,1.12618,1776.4,1776.3,7.09621]
[1743700184966,1.12618,1776.4,1776.3,7.66434361]
[1743700184967,2.57148,1776.4,1776.3,7.66434361]
[1743700185163,2.57148,1776.4,1776.3,7.66434508]
[1743700186571,2.57148,1776.4,1776.3,6.53813508]
[1743700186867,3.27578,1776.4,1776.3,6.53813508]
[1743700187172,3.27578,1776.4,1776.3,0.56813508]
[1743700187365,3.27578,1776.4,1776.3,1.69438508]
[1743700187565,3.27578,1776.4,1776.3,0.56813508]
[1743700188173,3.27578,1776.4,1776.3,1.69438508]
[1743700188967,3.27578,1776.4,1776.3,1.69470664]
[1743700188968,1.4453,1776.4,1776.3,1.69470664]
[1743700189464,2.57148,1776.4,1776.3,1.69470664]
[1743700189662,1.4453,1776.4,1776.3,1.69470664]
[1743700189862,1.84424933,1776.7,1776.6,1.12606]
[1743700190271,1.84424933,1776.7,1776.6,1.69478767]
[1743700190570,1.84424933,1776.7,1776.6,0.56872767]
[1743700190975,1.12606,1776.6,1776.5,3.34007]
[1743700191161,2.64306,1776.6,1776.5,0.56873001]
[1743700191560,1.12612,1776.5,1776.4,1.12616]
[1743700191873,2.64312,1776.5,1776.4,1.69497099]
[1743700192573,1.12607,1776.6,1776.5,1.12612]
[1743700192773,1.12607,1776.6,1776.5,3.17123099]
[1743700193070,2.64307,1776.6,1776.5,3.17124545]
[1743700193271,2.64307,1776.6,1776.5,1.69494545]
[1743700194267,2.64307,1776.6,1776.5,0.56882545]
[1743700194866,1.12612,1776.5,1776.4,1.12618]
[1743700195075,2.64662,1776.5,1776.4,1.69512222]
[1743700195375,1.5205,1776.5,1776.4,1.69512222]
[1743700195675,2.64662,1776.5,1776.4,0.56894222]
[1743700195875,9.82942,1776.5,1776.4,0.56894222]
[1743700197073,8.7033,1776.5,1776.4,0.56906157]
[1743700197270,1.12625,1776.3,1776.2,1.83798]
[1743700197476,1.12625,1776.3,1776.2,2.4070259]
[1743700197776,3.30672,1776.4,1776.3,1.12625]
[1743700197973,1.84722,1776.4,1776.3,0.5690459]
[1743700200575,1.12637,1776.1,1776.0,1.13208112]
[1743700200875,1.12637,1776.1,1776.0,0.57471647]
[1743700201071,1.12637,1776.1,1776.0,1.70115647]
[1743700201278,1.12637,1776.1,1776.0,0.57471647]
[1743700201478,1.12637,1776.1,1776.0,1.70115647]
[1743700201677,1.12637,1776.1,1776.0,0.57471647]
[1743700202170,1.12637,1776.1,1776.0,0.00570112]
[1743700202368,1.12637,1776.1,1776.0,0.57426844]
[1743700202977,3.62637,1776.1,1776.0,0.00570112]
[1743700203169,1.12669,1775.6,1775.5,2.8748]
[1743700203365,1.12686,1775.4,1775.3,1.12688]
[1743700203570,1.1268,1775.5,1775.4,1.12682]
[1743700203779,1.1268,1775.5,1775.3,3.30523]
[1743700204083,1.12682,1775.4,1775.3,3.30523]
[1743700204277,1.12682,1775.4,1775.3,2.1784]
[1743700204576,1.12682,1775.4,1775.3,0.7116]
[1743700204975,1.12682,1775.4,1775.3,1.83848]
[1743700205278,1.85243933,1775.6,1775.5,1.12675]
[1743700205476,0.72572933,1775.6,1775.5,1.12675]
[1743700205682,0.00842933,1775.6,1775.5,1.12675]
[1743700205876,0.00842933,1775.6,1775.5,1.69367332]
[1743700206268,0.00842933,1775.6,1775.5,42.49367332]
[1743700206580,0.00842933,1775.6,1775.5,48.96867332]
[1743700206781,3.2078,1775.9,1775.8,1.12656]
[1743700207074,1.12651,1775.9,1775.8,1.12654]
[1743700207678,1.12651,1775.9,1775.7,2.1618]
[1743700207679,4.33426,1776.0,1775.9,1.1265]
[1743700207873,1.1265,1775.9,1775.8,2.52821]
[1743700208074,0.00842933,1776.0,1775.8,2.52821]
[1743700208270,3.21622933,1776.0,1775.9,1.1265]
[1743700208475,0.00842933,1776.0,1775.9,1.1265]
[1743700209481,1.13486933,1776.0,1775.9,1.1265]
[1743700209869,0.00842933,1776.0,1775.9,1.1265]
[1743700210175,1.13486933,1776.0,1775.9,1.1265]
[1743700210977,1.1265,1775.9,1775.8,2.52822]
[1743700211177,0.00842933,1776.0,1775.8,1.12652]
[1743700211370,0.00842933,1776.0,1775.9,1.1265]
[1743700211575,1.13486933,1776.0,1775.9,1.1265]
[1743700211981,3.21622933,1776.0,1775.9,1.1265]
[1743700212181,4.34266933,1776.0,1775.9,1.1265]
[1743700212783,3.21622933,1776.0,1775.9,1.1265]
[1743700214889,4.34266933,1776.0,1775.9,1.1265]
[1743700215387,1.1265,1775.9,1775.8,2.64071]
[1743700215581,4.34271933,1776.0,1775.9,1.1265]
[1743700215775,1.1265,1775.9,1775.8,2.64071]
[1743700215980,3.21622933,1776.0,1775.7,0.76852933]
[1743700215981,6.03233933,1776.0,1775.7,0.76852933]
[1743700216183,1.87175,1775.9,1775.8,1.12654]
[1743700216986,3.30405,1775.9,1775.8,1.12654]
[1743700219393,1.12656,1775.8,1775.7,1.89508933]
[1743700219591,1.4866,1775.8,1775.7,1.89508933]
[1743700219791,1.4866,1775.8,1775.7,3.31908933]
[1743700220391,2.61316,1775.8,1775.7,0.76852933]
[1743700220686,8.32096,1775.8,1775.7,0.00842933]
[1743700220882,2.81682,1775.6,1775.2,3.28949]
[1743700221083,1.12688,1775.3,1775.2,2.62779]
[1743700223095,4.33468,1775.3,1775.2,2.62779]
[1743700223290,1.12688,1775.3,1775.2,2.62779]
[1743700223592,1.12694,1775.2,1775.1,1.5238]
[1743700223793,1.4406,1775.2,1775.1,2.6508]
[1743700224787,1.12671,1775.6,1775.5,1.12671]
[1743700225188,2.61191,1775.6,1775.5,1.12671]
[1743700225498,1.12656,1775.8,1775.5,40.8]
[1743700225795,1.12663,1775.7,1775.6,1.12663]
[1743700226297,1.4852,1775.8,1775.7,1.12663]
[1743700226792,2.61176,1775.8,1775.7,1.12663]
[1743700227292,1.4852,1775.8,1775.7,1.12663]
[1743700227496,2.61176,1775.8,1775.7,1.12663]
[1743700227997,2.61176,1775.8,1775.6,1.5124]
[1743700228299,2.56713,1775.7,1775.6,2.63904]
[1743700228595,1.12675,1775.5,1775.4,3.35916]
[1743700228796,4.6483,1775.7,1775.4,3.35916]
[1743700228797,2.56721,1775.6,1775.5,1.12675]
[1743700229099,1.12675,1775.5,1775.3,0.7343]
[1743700229289,1.4405,1775.4,1775.3,1.86118]
[1743700229489,1.4405,1775.4,1775.3,2.42885531]
[1743700229785,1.4405,1775.4,1775.3,1.69455531]
[1743700229990,1.4405,1775.4,1775.3,1.69456768]
[1743700230191,0.7123,1775.5,1775.4,1.12682]
[1743700230497,1.12675,1775.5,1775.4,1.12677]
[1743700230997,2.62315,1775.5,1775.4,1.12677]
[1743700231197,4.7042,1775.5,1775.3,1.12682]
[1743700231492,4.7042,1775.5,1775.3,1.12688]
[1743700231493,1.4964,1775.4,1775.3,1.12688]
[1743700232089,1.4964,1775.4,1775.3,1.6945861]
[1743700232290,0.7654,1775.6,1775.5,1.12675]
[1743700232495,1.4964,1775.6,1775.5,1.12675]
[1743700232793,1.4964,1775.6,1775.5,1.6944397]
[1743700233193,5.03905,1775.9,1775.8,1.12656]
[1743700233411,9.01305,1775.9,1775.8,1.12656]
[1743700233600,1.12659,1775.8,1775.7,1.12659]
[1743700233899,7.8865,1775.9,1775.8,1.12656]
[1743700234090,9.013,1775.9,1775.8,1.12656]
[1743700234497,10.4964,1775.9,1775.8,1.12656]
[1743700234895,4.6912,1775.9,1775.8,1.12656]
[1743700235396,5.8177,1775.9,1775.8,1.12656]
[1743700235990,1.12657,1775.8,1775.7,1.12657]
[1743700236191,2.60997,1775.8,1775.7,1.12657]
[1743700236387,1.4834,1775.8,1775.7,1.12657]
[1743700236591,2.60996,1775.8,1775.7,1.12657]
[1743700237393,1.12663,1775.7,1775.6,3.99216]
[1743700237594,2.58783,1775.7,1775.6,3.99216]
[1743700238297,1.4612,1775.7,1775.6,3.99216]
[1743700238496,2.58783,1775.7,1775.6,3.99216]
[1743700238897,5.79563,1775.7,1775.6,0.7623]
[1743700239096,4.669,1775.7,1775.3,1.4904]
[1743700239291,4.03712,1775.6,1775.5,1.12675]
[1743700239500,1.12675,1775.5,1775.4,2.60886]
[1743700239801,2.66085,1775.5,1775.4,1.12676]
[1743700240197,2.66085,1775.5,1775.4,1.69479577]
[1743700240591,1.12682,1775.4,1775.3,0.7633]
[1743700240797,2.66092,1775.4,1775.3,1.89018]
[1743700240996,2.66092,1775.4,1775.3,2.45826171]
[1743700241206,2.66092,1775.4,1775.3,1.89018]
[1743700242003,1.5341,1775.4,1775.3,2.45824318]
[1743700242202,2.66092,1775.4,1775.3,2.45824318]
[1743700242703,2.66092,1775.4,1775.3,2.45827997]
[1743700242904,2.66092,1775.4,1775.3,2.45827751]
[1743700243107,2.66092,1775.4,1775.3,2.45827383]
[1743700244407,2.66092,1775.4,1775.3,2.45840397]
[1743700245416,2.57594,1775.6,1775.5,1.12675]
[1743700245597,1.4883,1775.6,1775.5,1.12675]
[1743700245804,1.12663,1775.7,1775.6,1.12669]
[1743700246307,1.12668,1775.7,1775.6,1.12667]
[1743700246502,1.12669,1775.6,1775.5,2.59409]
[1743700246708,1.12669,1775.6,1775.5,1.12669]
[1743700246905,1.12677,1775.5,1775.4,1.12677]
[1743700247105,1.12677,1775.5,1775.4,0.56833588]
[1743700247406,1.12694,1775.2,1775.1,7.80456]
[1743700247608,1.12693,1775.3,1775.2,1.12694]
[1743700247807,2.61523,1775.3,1775.2,0.56845734]
[1743700248006,1.12694,1775.2,1775.1,3.30196]
[1743700248201,2.61524,1775.2,1775.1,1.69546412]
[1743700248415,1.4883,1775.2,1775.1,1.69546412]
[1743700248603,1.4883,1775.2,1775.1,1.69543063]
[1743700248804,2.61524,1775.2,1775.1,0.56847063]
[1743700249011,1.12701,1775.1,1775.0,41.92705]
[1743700249217,1.5042,1775.1,1775.0,42.49553215]
[1743700249506,2.63121,1775.1,1775.0,42.08976584]
[1743700249710,3.39571,1775.1,1775.0,1.28976584]
[1743700249912,6.60351,1775.1,1775.0,1.28976584]
[1743700250112,6.60351,1775.1,1775.0,0.56848215]
[1743700250508,6.60351,1775.1,1774.9,4.0269]
[1743700250509,5.4765,1775.1,1774.8,40.8]